fUSD/lending_fUSD_20240322
["ID","MTS","AMOUNT","RATE_DAILY","PERIOD"]
[320026080,1711074213297,-1563.34,0.00015915,2]
[320026081,1711074213317,-186.18,0.00015929,2]
[320026082,1711074213338,-15660.55,0.00015942,2]
[320026083,1711074213358,-156.21,0.00016044,2]
[320026084,1711074213380,-156.21,0.00016182,2]
[320026085,1711074213401,-261.19,0.00016199,2]
[320026086,1711074213422,-299.99,0.00016199,4]
[320026087,1711074213442,-3219.2,0.00016199,2]
[320026088,1711074213463,-173.69,0.00016203,2]
[320026089,1711074213485,-150.99,0.00016203,2]
[320026090,1711074213505,-499.99,0.00016203,2]
[320026091,1711074213526,-999.99,0.00016203,2]
[320026092,1711074213547,-178.09,0.00016215,2]
[320026093,1711074213568,-173.69,0.00016245,2]
[320026094,1711074213589,-423.61,0.00016253,2]
[320026095,1711074213611,-173.69,0.00016288,2]
[320026096,1711074213633,-223.98,0.00016298,2]
[320026097,1711074213653,-9423.3,0.00016298,2]
[320026098,1711074213674,-156.21,0.0001632,2]
[320026099,1711074213694,-173.69,0.00016331,2]
[320026100,1711074213716,-718.02,0.00016373,2]
[320026101,1711074213738,-173.69,0.00016373,2]
[320026102,1711074213760,-2617.28,0.00016382,2]
[320026103,1711074213780,-173.69,0.00016416,2]
[320026104,1711074213798,-1852.42,0.00016429,2]
[320026105,1711074213817,-156.21,0.00016458,2]
[320026106,1711074213839,-173.69,0.00016459,2]
[320026107,1711074213859,-173.69,0.00016501,2]
[320026108,1711074213879,-7684.308,0.00016501,2]
[320026109,1711074213899,-173.69,0.00016544,2]
[320026110,1711074213918,-1643.23,0.00016548,2]
[320026111,1711074213938,-250.0,0.00016579,2]
[320026112,1711074213960,-208.23,0.00016579,2]
[320026113,1711074213981,-173.69,0.00016587,2]
[320026114,1711074214002,-156.21,0.00016597,2]
[320026115,1711074214023,-1283.65,0.00016609,2]
[320026116,1711074214043,-173.69,0.00016629,2]
[320026117,1711074214063,-173.69,0.00016672,2]
[320026118,1711074214083,-169.14,0.0001669,2]
[320026119,1711074214103,-173.69,0.00016714,2]
[320026120,1711074214122,-156.21,0.00016735,2]
[320026121,1711074214143,-173.69,0.00016757,2]
[320026122,1711074214163,-173.69,0.000168,2]
[320026123,1711074214183,-168.92,0.00016828,2]
[320026124,1711074214202,-173.69,0.00016842,2]
[320026125,1711074214223,-173.69,0.00016885,2]
[320026126,1711074214243,-173.69,0.00016928,2]
[320026127,1711074214265,-173.69,0.0001697,2]
[320026128,1711074214285,-173.69,0.00017013,2]
[320026129,1711074214306,-163.84,0.00017426,2]
[320026130,1711074214326,-210.0,0.00017491,2]
[320026131,1711074214348,-210.0,0.00017491,2]
[320026132,1711074214367,-300.0,0.000175,6]
[320026133,1711074214387,-733.262,0.000176,2]
[320026134,1711074214407,-5383.3964,0.000176,2]
[320026135,1711074214426,-2500.0,0.000176,2]
[320026136,1711074214448,-600.0,0.000176,6]
[320026137,1711074214467,-251.53595423,0.0001762,2]
[320026138,1711074214488,-160.46296264,0.00017698,2]
[320026139,1711074214508,-615.46927641,0.00017699,2]
[320026140,1711074214530,-1000.0,0.000177,6]
[320026141,1711074214549,-47115.3098,0.000177,2]
[320026142,1711074214569,-199014.7213,0.000177,2]
[320026143,1711074214588,-2690.4617,0.000177,2]
[320026144,1711074214609,-212.32110903,0.0001772,2]
[320026145,1711074214630,-160.46296261,0.00017749,2]
[320026146,1711074214649,-427.42072393,0.00017789,2]
[320026147,1711074214671,-310.51375711,0.0001779,2]
[320026148,1711074214691,-700.27023693,0.00017798,2]
[320026149,1711074214710,-1069.42457811,0.00017798,2]
[320026150,1711074214730,-167.08522794,0.00017798,2]
[320026151,1711074214752,-900.57401404,0.00017798,2]
[320026152,1711074214777,-362.78014776,0.00017798,2]
[320026153,1711074214799,-400.0,0.00017798,2]
[320026154,1711074214820,-20682.42349898,0.00017798,2]
[320026155,1711074214842,-1945.925746,0.00017798,2]
[320026156,1711074214861,-486.5955382,0.00017798,2]
[320026157,1711074214882,-165.29542328,0.00017798,2]
[320026158,1711074214903,-159.30464084,0.00017798,2]
[320026159,1711074214923,-200.0068771,0.00017798,2]
[320026160,1711074214942,-376.61422614,0.00017798,2]
[320026161,1711074214961,-278.12126188,0.00017798,2]
[320026162,1711074214981,-155.28685602,0.00017798,2]
[320026163,1711074215000,-553.39945032,0.00017798,2]
[320026164,1711074215023,-1291.5122288,0.00017798,2]
[320026165,1711074215043,-706.03428143,0.00017798,2]
[320026166,1711074215066,-2584.60701112,0.00017798,2]
[320026167,1711074215086,-2011.17891908,0.00017799,2]
[320026168,1711074215107,-422.80313952,0.00017799,2]
[320026169,1711074215127,-2068.14570066,0.00017799,2]
[320026170,1711074215149,-160.46296261,0.00017799,2]
[320026171,1711074215174,-174780.48670616,0.000178,2]
[320026172,1711074488609,235.07,0.00014977,2]
[320026174,1711074632498,-156.88057937,0.00015667,2]
[320026175,1711074632539,-1774.40565298,0.00015667,2]
[320026176,1711074632553,-2291.71603045,0.00015667,2]
[320026177,1711074632567,-1000.9977372,0.00015667,2]
[320026178,1711074632577,-250.0,0.00016827,2]
[320026179,1711074632587,-500.0,0.00016857,2]
[320026180,1711074632596,-177.651521,0.00016986,2]
[320026181,1711074632606,-160.46296261,0.00016988,2]
[320026182,1711074632615,-118.67125712,0.0001707,2]
[320026183,1711074632635,-31.32874288,0.0001707,2]
[320026184,1711074632645,-360.68,0.00017071,2]
[320026185,1711074632654,-2751.0,0.00017071,2]
[320026186,1711074632664,-167.48,0.00017071,2]
[320026187,1711074632675,-250.0,0.00017081,2]
[320026188,1711074632685,-418.93307412,0.00017088,2]
[320026189,1711074637694,-2838.82692588,0.00017088,2]
[320026190,1711074637704,-1744.52,0.00017088,2]
[320026191,1711074637713,-661.11,0.00017107,2]
[320026192,1711074637722,-160.46296261,0.00017216,2]
[320026193,1711074637732,-235.07,0.00017241,2]
[320026194,1711074637741,-160.46296261,0.00017444,2]
[320026195,1711074637751,-400.0,0.000175,6]
[320026196,1711074637760,-800.0,0.000176,6]
[320026197,1711074637770,-160.46296261,0.00017671,2]
[320026198,1711074637779,-1200.0,0.000177,6]
[320026199,1711074637789,-255.3515169,0.00017799,2]
[320026200,1711074637800,-70219.51329384,0.000178,2]
[320026201,1711074637810,-1000.0,0.000178,2]
[320026202,1711074637819,-1239.3615,0.000178,2]
[320026203,1711074637829,-500.0,0.000178,2]
[320026204,1711074637838,-1600.0,0.000178,6]
[320026205,1711074637848,-177.651521,0.00017808,2]
[320026206,1711074637857,-179.93224075,0.0001782,2]
[320026207,1711074637867,-200.0,0.00017855,2]
[320026208,1711074637877,-800.0,0.00017855,2]
[320026209,1711074637886,-200.0,0.00017855,2]
[320026210,1711074637896,-200.0,0.00017855,2]
[320026211,1711074637905,-800.0,0.00017856,2]
[320026212,1711074637914,-200.0,0.00017856,2]
[320026213,1711074637924,-200.0,0.00017856,2]
[320026214,1711074637933,-800.0,0.00017856,2]
[320026215,1711074637943,-800.0,0.00017856,2]
[320026216,1711074637952,-201.443267,0.00017856,2]
[320026217,1711074637962,-200.0,0.00017856,2]
[320026218,1711074637971,-200.0,0.00017856,2]
[320026219,1711074637980,-200.0,0.00017856,2]
[320026220,1711074637989,-500.0,0.00017856,2]
[320026221,1711074637998,-200.0,0.00017856,2]
[320026222,1711074638008,-3120.75816296,0.00017899,2]
[320026223,1711074638017,-160.46296261,0.00017899,2]
[320026224,1711074638026,-198.86,0.000179,2]
[320026225,1711074638036,-1000.0,0.000179,2]
[320026226,1711074638045,-7500.0,0.000179,2]
[320026227,1711074638054,-2100.0,0.000179,6]
[320026228,1711074638063,-593.35352864,0.000179,2]
[320026229,1711074638073,-173.45606379,0.000179,2]
[320026230,1711074638082,-207.00917141,0.00017989,2]
[320026231,1711074638091,-207.00917141,0.0001799,2]
[320026232,1711074638101,-207.00917141,0.0001799,2]
[320026233,1711074638111,-196.31970333,0.00017997,2]
[320026234,1711074638120,-234.032209,0.00017998,2]
[320026235,1711074638130,-234.032209,0.00017998,2]
[320026237,1711074638139,-234.032209,0.00017998,2]
[320026239,1711074638148,-234.032209,0.00017998,2]
[320026241,1711074638157,-234.032209,0.00017998,2]
[320026243,1711074638167,-234.032209,0.00017998,2]
[320026245,1711074638176,-234.032209,0.00017998,2]
[320026247,1711074638185,-555.25758897,0.00017998,2]
[320026249,1711074638194,-609.0,0.00017999,2]
[320026251,1711074638203,-575.06437112,0.00017999,2]
[320026253,1711074638212,-521.88030428,0.00017999,2]
[320026255,1711074638221,-150.01,0.00017999,2]
[320026257,1711074638230,-275397.65693831,0.00017999,2]
[320026259,1711074638243,-859.372025,0.00017999,2]
[320026260,1711074638267,-2613.64,0.00017999,2]
[320026261,1711074638300,-699.06648948,0.00017999,2]
[320026262,1711074638312,-1010.71826873,0.00017999,2]
[320026274,1711074640018,-6555.5,0.00017999,2]
[320026275,1711074640030,-1016.61630091,0.00017999,2]
[320026276,1711074640046,-694.8081186,0.00017999,2]
[320026277,1711074640058,-653.94,0.00017999,2]
[320026281,1711074641117,-12161.24465093,0.00017999,2]
[320026282,1711074641350,-1128.75369285,0.00017999,2]
[320026286,1711074643063,-3342.31470418,0.00017999,2]
[320026287,1711074643075,-619.61246477,0.00017999,2]
[320026288,1711074646019,-263.81,0.00017989,3]
[320026289,1711074646028,-8038.62163532,0.00017999,2]
[320026290,1711075178993,185.62,0.00025343,120]
[320026291,1711075400106,211.56,0.00014967,2]
[320026329,1711075832562,-1162.0,0.00016775,2]
[320026330,1711075832572,-124.75969779,0.00016795,2]
[320026332,1711075837911,-55.58030221,0.00016795,2]
[320026333,1711075837921,-160.46296261,0.00016809,2]
[320026334,1711075837932,-250.0,0.00016815,2]
[320026335,1711075837941,-500.0,0.00016815,2]
[320026336,1711075837950,-471.11,0.0001682,2]
[320026337,1711075837959,-250.0,0.00016884,2]
[320026338,1711075837969,-185.62,0.00016896,2]
[320026339,1711075837978,-169.14,0.00016923,2]
[320026340,1711075837987,-71.48714601,0.0001723,2]
[320026341,1711075838075,-140.07285399,0.0001723,2]
[320026342,1711075838085,-672.42,0.00017415,2]
[320026343,1711075838095,-161.84,0.00017418,2]
[320026344,1711075838104,-499.99,0.00017418,2]
[320026345,1711075838114,-528.89,0.00017471,2]
[320026346,1711075838126,-300.0,0.000175,6]
[320026347,1711075838136,-161.84,0.00017592,2]
[320026348,1711075838147,-600.0,0.000176,6]
[320026349,1711075838156,-150.0,0.00017649,2]
[320026350,1711075838166,-900.0,0.000177,6]
[320026351,1711075838175,-161.84,0.00017766,2]
[320026352,1711075838185,-150.0,0.00017797,2]
[320026353,1711075838194,-500.0,0.00017798,2]
[320026354,1711075838204,-198.86,0.00017798,2]
[320026355,1711075838213,-1363.0672,0.00017798,2]
[320026356,1711075838224,-2234.1701,0.00017798,2]
[320026357,1711075838234,-2705.49811847,0.00017799,2]
[320026358,1711075838245,-1200.0,0.000178,6]
[320026359,1711075838256,-159.886369,0.00017808,2]
[320026360,1711075838266,-179.93224075,0.0001782,2]
[320026361,1711075838276,-200.0,0.00017855,2]
[320026362,1711075838286,-800.0,0.00017855,2]
[320026364,1711075838297,-200.0,0.00017855,2]
[320026365,1711075838307,-500.0,0.00017855,2]
[320026366,1711075838317,-200.0,0.00017855,2]
[320026367,1711075838328,-200.0,0.00017856,2]
[320026368,1711075838339,-200.0,0.00017856,2]
[320026369,1711075838349,-800.0,0.00017856,2]
[320026370,1711075838358,-201.443267,0.00017856,2]
[320026371,1711075838369,-200.0,0.00017856,2]
[320026372,1711075838379,-200.0,0.00017856,2]
[320026373,1711075838388,-200.0,0.00017856,2]
[320026374,1711075838398,-500.0,0.00017856,2]
[320026375,1711075838407,-200.0,0.00017856,2]
[320026376,1711075838416,-207.00917141,0.00017888,2]
[320026377,1711075838428,-1239.36151131,0.00017896,2]
[320026378,1711075838437,-4716.0918478,0.00017897,2]
[320026379,1711075838447,-681048.09535452,0.00017898,2]
[320026380,1711075838455,-161022.1165,0.00017899,2]
[320026381,1711075838466,-1000.0,0.00017899,2]
[320026382,1711075838476,-7500.0,0.000179,2]
[320026383,1711075838486,-3120.75816296,0.000179,2]
[320026384,1711075838495,-1500.0,0.000179,6]
[320026385,1711075838505,-173.45606379,0.000179,2]
[320026386,1711075838514,-593.35352864,0.000179,2]
[320026387,1711075838525,-1000.0,0.0001791,2]
[320026388,1711075838535,-161.84,0.0001794,2]
[320026389,1711075838544,-207.00917141,0.0001799,2]
[320026390,1711075838553,-207.00917141,0.0001799,2]
[320026391,1711075838565,-575.06437112,0.00017997,2]
[320026392,1711075838575,-521.88030428,0.00017997,2]
[320026393,1711075838586,-196.31970333,0.00017997,2]
[320026394,1711075838595,-234.032209,0.00017998,2]
[320026395,1711075838605,-234.032209,0.00017998,2]
[320026396,1711075838614,-234.032209,0.00017998,2]
[320026397,1711075838625,-234.032209,0.00017998,2]
[320026398,1711075838636,-234.032209,0.00017998,2]
[320026399,1711075838646,-234.032209,0.00017998,2]
[320026400,1711075838656,-234.032209,0.00017998,2]
[320026401,1711075838666,-555.25758897,0.00017998,2]
[320026402,1711075838676,-2045.97022245,0.00017999,2]
[320026403,1711075838688,-150.01,0.00017999,2]
[320026404,1711075838698,-3000.0,0.00017999,2]
[320026405,1711075838707,-513.0,0.00018,2]
[320026406,1711075838716,-96268.13532296,0.00018,2]
[320026407,1711075838729,-701.68813675,0.00018,2]
[320026408,1711075838755,-287294.78209167,0.00018,2]
[320026409,1711075838764,-18214.93903832,0.00018,2]
[320026411,1711075840201,-896.88435346,0.00018,2]
[320026412,1711075840214,-655.843,0.00018,2]
[320026416,1711075843120,-679.26870576,0.00018,2]
[320026435,1711075846333,-924.95022639,0.00017999,2]
[320026471,1711076350321,-1200.0,0.00022,23]
[320026472,1711076386592,-209.0,0.00023,20]
[320026473,1711076771321,155.0,0.00015,2]
[320026612,1711076847655,555.0,0.00015,2]
[320026636,1711077032331,-219.62,0.0001731,2]
[320026637,1711077032343,-3000.0,0.0001782,2]
[320026638,1711077032354,-800.0,0.00017855,2]
[320026639,1711077032365,-200.0,0.00017855,2]
[320026640,1711077032377,-200.0,0.00017856,2]
[320026641,1711077032388,-800.0,0.00017856,2]
[320026642,1711077032400,-200.0,0.00017856,2]
[320026643,1711077032410,-500.0,0.00017856,2]
[320026644,1711077032420,-200.0,0.00017856,2]
[320026645,1711077032430,-697.75904557,0.00017899,2]
[320026646,1711077032469,-251.27663931,0.00017899,2]
[320026651,1711077038055,-392.29328522,0.00017899,2]
[320026652,1711077038129,-1025.98188357,0.00017899,2]
[320026653,1711077038141,-187.67995831,0.000179,2]
[320026654,1711077038153,-1000.0,0.000179,2]
[320026655,1711077038166,-7500.0,0.000179,2]
[320026656,1711077038178,-2618.36071834,0.000179,2]
[320026657,1711077038197,-242.3342643,0.000179,2]
[320026658,1711077038208,-474.68282292,0.000179,2]
[320026659,1711077038219,-1213.0434975,0.00017997,2]
[320026660,1711077038231,-1384.39732587,0.00017997,2]
[320026661,1711077038244,-136.74208941,0.00017998,2]
[320026662,1711077038262,-97.29011959,0.00017998,2]
[320026663,1711077038274,-234.032209,0.00017998,2]
[320026664,1711077038284,-234.032209,0.00017998,2]
[320026665,1711077038295,-234.032209,0.00017998,2]
[320026666,1711077038308,-234.032209,0.00017998,2]
[320026667,1711077038319,-234.032209,0.00017998,2]
[320026668,1711077038330,-202.86814002,0.00017998,2]
[320026669,1711077038348,-31.16406898,0.00017998,2]
[320026670,1711077038359,-1027.58728196,0.00017999,2]
[320026671,1711077038375,-566.67802352,0.00017999,2]
[320026672,1711077038392,-1309.14461714,0.00017999,2]
[320026673,1711077038433,-305509.72112999,0.00017999,2]
[320026674,1711077038456,-2732.59914,0.00017999,2]
[320026680,1711077040452,-1047.01304233,0.00017999,2]
[320026707,1711077043198,-6567.47139194,0.00017999,2]
[320026708,1711077043333,-859.86944775,0.00017999,2]
[320026709,1711077043346,-3033.99566404,0.00017999,2]
[320026710,1711077043358,-1148.5000006,0.00017999,2]
[320026711,1711077043371,-384.566,0.00017999,2]
[320026712,1711077043384,-540.98033726,0.00017999,2]
[320026713,1711077043421,-444.24779552,0.00017999,2]
[320026716,1711077046134,-4409.15814347,0.00017999,2]
[320026717,1711077046144,-1818.64019773,0.00017999,2]
[320026718,1711077046154,-9574.7004088,0.00018,2]
[320026904,1711077287317,-10898.54619855,0.00018,10]
[320026905,1711077341418,398.0,0.00025005,120]
[320026906,1711077459828,177.95,0.00013729,2]
[320026914,1711077978819,155.65442777,0.00013729,2]
[320026915,1711078000790,306.11567039,0.00013729,2]
[320027072,1711078156963,292.22501509,0.00013729,2]
[320027079,1711078232882,-329.61820133,0.00015243,2]
[320027104,1711078238292,-899.25999328,0.00015243,2]
[320027105,1711078238302,-208.63,0.00015244,2]
[320027106,1711078238312,-500.0,0.00016944,2]
[320027107,1711078238322,-1065.12789083,0.00017049,2]
[320027108,1711078238359,-6235.07210917,0.00017049,2]
[320027109,1711078238368,-623.11,0.00017113,2]
[320027110,1711078238377,-1888.68,0.00017126,2]
[320027111,1711078238387,-376.89,0.00017161,2]
[320027112,1711078238396,-250.0,0.00017161,2]
[320027113,1711078238406,-169.14,0.00017274,2]
[320027114,1711078238419,-180.34,0.00017331,2]
[320027115,1711078238428,-555.94,0.00017389,2]
[320027116,1711078238437,-897.0,0.00017438,2]
[320027117,1711078238446,-250.0,0.0001746,2]
[320027118,1711078238457,-2812.39,0.00017497,2]
[320027119,1711078238466,-208.63,0.00017507,2]
[320027120,1711078238476,-404.56,0.00017778,2]
[320027121,1711078238486,-421.71,0.00017778,2]
[320027122,1711078238495,-302.34,0.00017778,2]
[320027123,1711078238505,-316.36,0.00017778,2]
[320027124,1711078238514,-2999.7375,0.00017797,2]
[320027125,1711078238522,-2071.39699697,0.00017798,2]
[320027126,1711078238531,-160.78565,0.00017808,2]
[320027127,1711078238540,-200.0,0.00017856,2]
[320027128,1711078238550,-800.0,0.00017856,2]
[320027129,1711078238559,-200.0,0.00017856,2]
[320027130,1711078238568,-500.0,0.00017856,2]
[320027131,1711078238577,-200.0,0.00017856,2]
[320027132,1711078238587,-282485.63887385,0.00017897,2]
[320027133,1711078238598,-1613.18836489,0.00017897,2]
[320027134,1711078238625,-440.9237852,0.00017897,2]
[320027135,1711078238636,-5406.09793133,0.00017897,2]
[320027136,1711078238647,-1061.680055,0.00017897,2]
[320027137,1711078238659,-1082.8479996,0.00017897,2]
[320027138,1711078238675,-1286.31668087,0.00017897,2]
[320027139,1711078238706,-883.00965683,0.00017897,2]
[320027140,1711078238718,-1101.59378,0.00017897,2]
[320027148,1711078243252,-150.44231,0.0001782,2]
[320027152,1711078243262,-203.81769,0.00017897,2]
[320027173,1711078243390,-1643.2926,0.00017897,2]
[320027175,1711078243402,-9160.68573742,0.00017897,2]
[320027177,1711078243412,-100000.0,0.00017898,2]
[320027179,1711078243421,-1000.0,0.00017898,2]
[320027180,1711078243431,-7500.0,0.00017899,2]
[320027182,1711078243441,-2622.30373416,0.000179,2]
[320027184,1711078243450,-206.32928831,0.000179,2]
[320027186,1711078243462,-379.74625836,0.000179,2]
[320027188,1711078243470,-190.89966321,0.00017989,2]
[320027190,1711078243479,-155.0,0.00017997,2]
[320027191,1711078243488,-234.032209,0.00017998,2]
[320027192,1711078243498,-234.032209,0.00017998,2]
[320027193,1711078243508,-234.032209,0.00017998,2]
[320027194,1711078243518,-234.032209,0.00017998,2]
[320027195,1711078243528,-234.032209,0.00017998,2]
[320027196,1711078243538,-234.032209,0.00017998,2]
[320027197,1711078243548,-234.032209,0.00017998,2]
[320027198,1711078243558,-2710.65427209,0.00017998,2]
[320027199,1711078243567,-1616.56906465,0.00017999,2]
[320027200,1711078243577,-7819.5865188,0.00017999,2]
[320027201,1711078243597,-350.7154793,0.00017999,2]
[320027202,1711078243609,-1648.36620308,0.00017999,2]
[320027203,1711078243639,-250.37536905,0.00017999,2]
[320027204,1711078243687,-3040.53327835,0.00017999,2]
[320027205,1711078243700,-3082.7552651,0.00017999,2]
[320027206,1711078243711,-2258.01940348,0.00017999,2]
[320027207,1711078243724,-3713.93344955,0.00017999,2]
[320027208,1711078243737,-237941.66166778,0.00017999,2]
[320027217,1711078246479,-165.69431933,0.00017896,2]
[320027218,1711078246489,-1403698.82265338,0.00017999,2]
[320027219,1711078246499,-390893.35640482,0.00018,2]
[320027220,1711078246509,-1573836.40571514,0.00018,2]
[320027221,1711078246524,-16237.07036409,0.00018,2]
[320027222,1711078246534,-237164.94791769,0.00018,2]
[320027223,1711078246543,-571676.86544288,0.00018,2]
[320027224,1711078246555,-3502.161261,0.00018,2]
[320027228,1711078388466,-243.73021129,0.00017998,5]
[320027229,1711078388489,-320.12386348,0.00017999,5]
[320027230,1711078440652,200.01,0.0002482,120]
[320027231,1711078456060,-1200.0,0.00024,25]
[320027232,1711078456083,-1200.0,0.00025,26]
[320027233,1711078456107,-79985.31837341,0.00025,30]
[320027234,1711078456129,-17614.68162659,0.00025,30]
[320027241,1711079090407,-348.29,0.00021918,10]
[320027242,1711079119419,-90000.0,0.00025,30]
[320027356,1711079323233,-1228.87819461,0.0001504,2]
[320027357,1711079323262,-710.85287034,0.00015041,2]
[320027358,1711079323288,-546.18764233,0.00015297,2]
[320027359,1711079323314,-3393.09914,0.00015939,2]
[320027360,1711079323340,-257.2,0.00016266,2]
[320027361,1711079323366,-250.0,0.00016284,2]
[320027362,1711079329468,269.11,0.00014507,2]
[320027363,1711079337748,159.79391477,0.00016254,2]
[320027365,1711079382914,-353.53104154,0.00017998,5]
[320027373,1711079431510,-250.0,0.00016288,2]
[320027374,1711079431520,-122.88887261,0.00016309,2]
[320027375,1711079431533,-27.11112739,0.00016309,2]
[320027376,1711079431542,-719.30765629,0.0001631,2]
[320027377,1711079431610,-10407.3414697,0.0001631,2]
[320027378,1711079431731,-532.02211302,0.0001631,2]
[320027379,1711079431744,-1017.36783253,0.0001631,2]
[320027380,1711079431756,-750.0,0.0001631,2]
[320027381,1711079431773,-800.0,0.0001631,2]
[320027401,1711079437499,-9673.96092846,0.0001631,2]
[320027404,1711079437509,-185.62,0.00016354,2]
[320027406,1711079437519,-171.09,0.00016481,2]
[320027407,1711079437529,-501.51,0.00016499,2]
[320027409,1711079437538,-200.01,0.00016547,2]
[320027412,1711079437548,-200.98,0.00016692,2]
[320027414,1711079437557,-200.98,0.00016736,2]
[320027415,1711079437567,-269.11,0.00016771,2]
[320027417,1711079437576,-200.98,0.0001678,2]
[320027419,1711079437585,-200.98,0.00016824,2]
[320027421,1711079437594,-200.98,0.00016868,2]
[320027423,1711079437604,-200.98,0.00016912,2]
[320027425,1711079437614,-200.98,0.00016956,2]
[320027426,1711079437623,-498.49,0.00016971,2]
[320027427,1711079437632,-1511.7,0.00016971,2]
[320027428,1711079437641,-200.98,0.00017,2]
[320027429,1711079437650,-200.98,0.00017044,2]
[320027430,1711079437659,-159.79391477,0.00017077,2]
[320027432,1711079437668,-200.98,0.00017088,2]
[320027434,1711079437678,-1235.39685561,0.00017097,2]
[320027436,1711079437687,-200.98,0.00017132,2]
[320027438,1711079437697,-200.98,0.00017175,2]
[320027440,1711079437706,-200.98,0.00017219,2]
[320027442,1711079437715,-200.98,0.00017263,2]
[320027444,1711079437724,-200.98,0.00017307,2]
[320027446,1711079437734,-200.98,0.00017351,2]
[320027448,1711079437743,-200.98,0.00017395,2]
[320027450,1711079437752,-200.98,0.00017439,2]
[320027452,1711079437760,-200.98,0.00017483,2]
[320027454,1711079437770,-12484.94124997,0.000175,2]
[320027456,1711079437779,-200.98,0.00017527,2]
[320027458,1711079437792,-3000.0,0.0001782,2]
[320027460,1711079437801,-200.0,0.00017856,2]
[320027462,1711079437810,-800.0,0.00017856,2]
[320027464,1711079437820,-200.0,0.00017856,2]
[320027466,1711079437829,-200.0,0.00017856,2]
[320027468,1711079437838,-251.97636858,0.00017895,2]
[320027470,1711079437847,-157.80764515,0.00017895,2]
[320027472,1711079437860,-4157.81686675,0.00017895,2]
[320027474,1711079437869,-843.46695987,0.00017895,2]
[320027476,1711079437879,-616.16446858,0.00017895,2]
[320027478,1711079437888,-345.21232142,0.00017896,2]
[320027479,1711079437898,-159.79391477,0.00017899,2]
[320027480,1711079437907,-303.79700668,0.00017899,2]
[320027481,1711079437916,-7500.0,0.000179,2]
[320027482,1711079437926,-5369.88547179,0.00017997,2]
[320027483,1711079437935,-155.21103832,0.00017997,2]
[320027484,1711079437945,-155.34283485,0.00017997,2]
[320027485,1711079437953,-215.34393008,0.00017997,2]
[320027486,1711079437963,-201.70306154,0.00017997,2]
[320027487,1711079437972,-548.19956647,0.00017997,2]
[320027488,1711079437982,-11369.03404874,0.00017997,2]
[320027489,1711079437991,-713.79631744,0.00017997,2]
[320027490,1711079438001,-2171.97487479,0.00017998,2]
[320027491,1711079438010,-155.93939712,0.00017998,2]
[320027493,1711079438019,-2781.68265531,0.00017998,2]
[320027494,1711079438028,-161.14657785,0.00017998,2]
[320027496,1711079438037,-203.40077725,0.00017998,2]
[320027497,1711079438046,-155.12187729,0.00017998,2]
[320027498,1711079438055,-673.70574058,0.00017998,2]
[320027499,1711079438064,-234.032209,0.00017998,2]
[320027500,1711079438074,-234.032209,0.00017998,2]
[320027501,1711079438087,-234.032209,0.00017998,2]
[320027502,1711079438096,-234.032209,0.00017998,2]
[320027503,1711079438108,-234.032209,0.00017998,2]
[320027504,1711079438117,-234.032209,0.00017998,2]
[320027505,1711079438126,-234.032209,0.00017998,2]
[320027506,1711079438135,-250.0,0.00017998,2]
[320027507,1711079438145,-42049.75069846,0.00017999,2]
[320027508,1711079438174,-66177.12564205,0.00017999,2]
[320027509,1711079438199,-1226.61412379,0.00017999,2]
[320027510,1711079438211,-1702.28813829,0.00017999,2]
[320027511,1711079438230,-678.85888509,0.00017999,2]
[320027528,1711079439748,-409.64,0.00017999,2]
[320027546,1711079439922,-1055.93868687,0.00017999,2]
[320027548,1711079439933,-2090.79123652,0.00017999,2]